{"text_format":"3","workbook":"xlsx","n_sheets":1,"sheets":["Feuil1"],"not_rendered":{"images":51,"defined_names":1},"read":"whole","date_system":"1900"}

{"sheet":"Feuil1","index":0,"n_rows":116,"n_cols":8,"rows_kept":116,"merged":[[11,3,11,4],[12,3,12,4],[13,3,13,4],[14,3,14,4],[15,2,15,5],[17,2,17,4],[20,2,20,5],[54,4,54,5],[55,4,55,5],[57,1,57,6],[92,1,92,4],[93,1,93,4],[95,1,95,6],[114,1,114,4],[115,1,115,4]]}
[]
[null,null,"SAVEURS DE CRETE"]
[null,null,"ASSARGIOTAKIS Géraldine"]
[null,null,"Code Postale: 70007 AVDOU (Xersonnissos)"]
[null,null,"CRETE GRECE"]
[null,null,"TEL: 00.30.2897.05.17.74   (moulin)"]
[null,null,"TEL: 00.30.6984.304.527 (portable)"]
[null,null,"MAIL: assar@otenet.gr"]
[null,null,"WEBSITE: www.assargiotakisyannis.gr"]
[]
[null,null,"COORDONNEES CLIENT:"]
[{"$nulls":3},"total Huile",null,{"$f":"E55","v":0},{"$f":"E56","v":{"v":0,"d":"0.00 Litres"}}]
[null,"NOM :",null,"total comsmétiques MESSINIAN SPA",null,{"$f":"F94","v":0},{"$f":"F93","v":{"v":0,"d":"0 Produits"}}]
[null,"TEL :",null,"total Kalliston Olive Passion",null,{"$f":"F116","v":0},{"$f":"F115","v":{"v":0,"d":"0 Produits"}}]
[null,"email : ",null,"Total général",null,{"$f":"F12+F13","v":0}]
[null,"ADRESSE :"]
[null,null,"Paiement au nom de l'API impérativement joint au  bon de commande"]
[null,null,"Virement                                                     IBAN API : FR76 1310 6005 0020 0081 4818 484     Code BIC AGRIFRPP831"]
[null,null,"Chèque ","Banque:"]
[null,null,"BON DE COMMANDE 2026  avant le 11 Mai  2026  IMPERATIVEMENT"]
[null,null,"BON DE COMMANDE - 2026"]
[null,null,"PRODUITS","PRIX UNITE","QUANTITE","TOTAL EUROS",null,"Nbre de Litres"]
[null,null,"Bidons de 5 litres",{"v":65.5,"d":"65.50 €"},null,{"$f":"D23*E23","v":0},null,{"$f":"E23*5","v":{"v":0,"d":"0.00"}}]
[null,null,"Bidons de 3 litres",{"v":39.8,"d":"39.80 €"},null,0,null,{"$f":"E24*3","v":{"v":0,"d":"0.00"}}]
[null,null,"Bidons de 2 litres",{"v":27,"d":"27.00 €"},null,0,null,{"$f":"E25*2","v":{"v":0,"d":"0.00"}}]
[null,null,"Bidons de 1 litre",{"v":13.7,"d":"13.70 €"},null,0,null,{"$f":"E26","v":{"v":0,"d":"0.00"}}]
[null,null,"Bidons de 500 ml",{"v":7.2,"d":"7.20 €"},null,0,null,{"$f":"E27*0.5","v":{"v":0,"d":"0.00"}}]
[null,null,"Bouteille de 500 ml huile citron",{"v":8.4,"d":"8.40 €"},null,0,null,{"$f":"E28*0.5","v":{"v":0,"d":"0.00"}}]
[null,null,"Bouteille de 250 ml huile orange",{"v":4.2,"d":"4.20 €"},null,0,null,{"$f":"E29*0.25","v":{"v":0,"d":"0.00"}}]
[null,null,"Bouteille de 250 ml huile à l'ail",{"v":4.2,"d":"4.20 €"},null,0,null,{"$f":"E30*0.25","v":{"v":0,"d":"0.00"}}]
[null,null,"Bouteille de 250 ml huile basilic",{"v":4.2,"d":"4.20 €"},null,0,null,{"$f":"E31*0.1","v":{"v":0,"d":"0.00"}}]
[null,null,"Bouteille 250 ml huile HAUTE TENEUR EN POLYPHENOLS ",{"v":12,"d":"12.00 €"},null,0]
[null,null,"Miel thym 500 gr",{"v":9.2,"d":"9.20 €"},null,0]
[null,null,"Miel thym 2 kg",{"v":33,"d":"33.00 €"},null,0]
[null,null,"Olives vertes sachet sous vide de 200 gr",{"v":2.5,"d":"2.50 €"},null,0]
[null,null,"Olives noires sachet sous vide de 200 gr",{"v":2.5,"d":"2.50 €"},null,0]
[null,null,"Olives crétoises Koroneiki 170 gr",{"v":2.8,"d":"2.80 €"},null,0]
[null,null,"Tapenade noire 180 gr",{"v":3.6,"d":"3.60 €"},null,0]
[null,null,"Tapenade verte 180 gr",{"v":3.6,"d":"3.60 €"},null,0]
[null,null,"Mix Herbes Aromatiques Pour Salade Grecque 50 gr",{"v":1.5,"d":"1.50 €"},null,0]
[null,null,"Mix Herbes Aromatiques Pour Tzatziki 50 gr",{"v":1.5,"d":"1.50 €"},null,0]
[null,null,"Mix Herbes Aromatiques Pour Barbecue 50 gr",{"v":1.5,"d":"1.50 €"},null,0]
[null,null,"Mix Herbes Aromatiques Pour Poulet 50 gr",{"v":1.5,"d":"1.50 €"},null,0]
[null,null,"Dictame 25 gr",{"v":2.5,"d":"2.50 €"},null,0]
[null,null,"Savons blancs traditionnels huile olive 160-180 gr",{"v":2.5,"d":"2.50 €"},null,0]
[null,null,"Savons huile olive pure  100 gr",{"v":1,"d":"1.00 €"},null,0]
[null,null,"Savons huile olive aloe vera 100 gr",{"v":1,"d":"1.00 €"},null,0]
[null,null,"Savons huile olive miel 100 gr",{"v":1,"d":"1.00 €"},null,0]
[null,null,"Savons huile olive camomille 100 gr",{"v":1,"d":"1.00 €"},null,0]
[null,null,"Savons huile olive Rose 100 gr",{"v":1,"d":"1.00 €"},null,0]
[null,null,"Savons huile olive lavande 100 gr",{"v":1,"d":"1.00 €"},null,0]
[null,null,"Savons huile olive Grenade 100 gr",{"v":1,"d":"1.00 €"},null,0]
[null,null,"Savons huile olive vanille 100 gr",{"v":1,"d":"1.00 €"},null,0]
[null,null,"Savons huile olive Jasmin 100 gr",{"v":1,"d":"1.00 €"},null,{"$f":"D54*E54","v":0}]
[{"$nulls":3},"Total",{"$f":"SUM(F23:F54)","v":0}]
[{"$nulls":3},"Nombre de litres",{"$f":"SUM(H23:H31)","v":{"v":0,"d":"0.00 Litres"}}]
[]
[null,"COSMETIQUES MESSINIAN SPA :PRODUITS A L'HUILE D'OLIVE BIO SANS PARABEN "]
[null,null,"PRODUITS ","CONTENANCE"," PRIX UNITE ","QUANTITE","TOTAL"]
[null,null,"SHAMPOING OLIVE BIO Grenade et Raisin CHEVEUX SECS, ABIMES, COLORES","300 ML",{"v":6.5,"d":"6.50 €"},null,{"$f":"F60*E60","v":0}]
[null,null,"SHAMPOING OLIVE BIO TOUT TYPE DE CHEVEUX Blé et Miel","300 ML",{"v":6.1,"d":"6.10 €"},null,{"$f":"F61*E61","v":0}]
[null,null,"SHAMPOING OLIVE CERISE Feuilles d'olivier, blé, amandes, Argan TOUTE TYPE DE CHEVEUX","300 ML",{"v":6.5,"d":"6.50 €"},null,{"$f":"F62*E62","v":0}]
[null,null,"APRES-SHAMPOING - huile Argan, amande, huile pepin de raisin (sans rincage)","150 ML",{"v":6.9,"d":"6.90 €"},null,{"$f":"F63*E63","v":0}]
[null,null,"APRES-SHAMPOING Blé et Miel","300 ML",{"v":6.1,"d":"6.10 €"},null,0]
[null,null,"MASQUE CHEVEUX Laurier et Grenade","250 ML",{"v":7.5,"d":"7.50 €"},null,0]
[null,null,"HUILE PRECIEUSE CHEVEUX Nourrissante, Protectrice, Hydratante ","100 ML",{"v":11.4,"d":"11.40 €"},null,0]
[null,null,"GEL DOUCHE HUILE OLIVE BIO Grenade et Miel","300 ML",{"v":5.3,"d":"5.30 €"},null,0]
[null,null,"GEL DOUCHE ORANGE ORCHIDEE VANILLE MYRTILLE","300 ML",{"v":6.5,"d":"6.50 €"},null,0]
[null,null,"GEL DOUCHE HUILE OLIVE YAOURT ET ALOE VERA","300 ML",{"v":6.5,"d":"6.50 €"},null,0]
[null,null,"LAIT POUR LE CORPS HUILE OLIVE BIO Grenade et Miel","300 ML",{"v":8.3,"d":"8.30 €"},null,0]
[null,null,"LAIT POUR LE CORPS ORANGE ORCHIDEE VANILLE MYRTILLE","300 ML",{"v":8.3,"d":"8.30 €"},null,0]
[null,null,"BODY BUTTER HUILE OLIVE BIO Grenade et Miel","250 ML",{"v":10.2,"d":"10.20 €"},null,0]
[null,null,"BODY YOGURT HUILE OLIVE BIO Yaourt et Aloe Vera","250 ML",{"v":9.6,"d":"9.60 €"},null,{"$f":"F73*E73","v":0}]
[null,null,"HUILE MASSAGE, CORPS, CHEVEUX, VISAGE A HUILE OLIVE BIO 3 EN 1","150 ML",{"v":11.6,"d":"11.60 €"},null,{"$f":"F74*E74","v":0}]
[null,null,"HUILE CORPS EFFET BRONZE ET BRILLANT Non grasse","100 ML",{"v":13.3,"d":"13.30 €"},null,{"$f":"F75*E75","v":0}]
[null,null,"HUILE CORPS BRILLANT Non grasse Gelee royale","100 ML",{"v":13.3,"d":"13.30 €"},null,{"$f":"F76*E76","v":0}]
[null,null,"CRÈME MAINS ET ONGLES HUILE OLIVE BIO - Calendula Et Citron","100 ML",{"v":7,"d":"7.00 €"},null,{"$f":"F77*E77","v":0}]
[null,null,"CRÈME POUR LES PIEDS HUILE OLIVE BIO - Origan Et Romarin","100 ML",{"v":7,"d":"7.00 €"},null,0]
[null,null,"CRÈME POUR LES MAINS  ET CORPS HUILE OLIVE - Gelée Royale, fleurs Helichrysum et miel","250 ML",{"v":11.6,"d":"11.60 €"},null,0]
[null,null,"SOINS LAVANTS DOUX Camomille et Romarain pour Toilette intime","300 ML",{"v":7.3,"d":"7.30 €"},null,0]
[null,null,"GEL ALEO VERA - 97 % panthénaol B5","100 ML",{"v":4.7,"d":"4.70 €"},null,0]
[null,null,"SPRAY RAFFRAICHISSANT HYDRATANT ET PARFUME POUR CHEVEUX ET CORPS - Grenade et Miel","100 ML ",{"v":8.6,"d":"8.60 €"},null,0]
[null,null,"SPRAY RAFFRAICHISSANT HYDRATANT ET PARFUME POUR CHEVEUX ET CORPS - Truffe noire","100 ML ",{"v":8.6,"d":"8.60 €"},null,0]
[null,null,"SPRAY RAFFRAICHISSANT HYDRATANT ET PARFUME POUR CHEVEUX ET CORPS - Gelée royale","100 ML ",{"v":8.6,"d":"8.60 €"},null,0]
[null,null,"CRÈME NETTOYANTE EXFOLLIANTE POUR LE CORPS ET VISAGE - Figue de Barbarie et dictame","250 ML",{"v":9.6,"d":"9.60 €"},null,0]
[null,null,"CRÈME ANTI-AGE HUILE OLIVE BIO - Avocat Et Fleurs 'Immortelle'","50 ML",{"v":18.8,"d":"18.80 €"},null,0]
[null,null,"CRÈME 24 H (crème jour et nuit pour peau sèche et normale) huile olive bio Figue barbarie et miel","50ML",{"v":17.4,"d":"17.40 €"},null,0]
[null,null,"CRÈME 24 H (crème jour et nuit pour peau grasse et mixte) huile olive bio Figue barbarie et raisin","50ML",{"v":17.4,"d":"17.40 €"},null,0]
[null,null,"CRÈME CONTOUR DES YEUX - Hamamelis et concombre","50ML",{"v":15.9,"d":"15.90 €"},null,0]
[null,null,"LOTION MICELLAIRE - Démaquillante, nettoyante, apaisante Concombre et aloe vera","300 ML",{"v":7.8,"d":"7.80 €"},null,0]
[null,null,"NETTOYANT VISAGE (Face Wash) - Orange Et Concombre","300 ML",{"v":7,"d":"7.00 €"},null,{"$f":"F91*E91","v":0}]
[]
[null,"Nombre de produits PRODUITS",{"$nulls":3},{"$f":"SUM(F60:F91)","v":{"v":0,"d":"0 Produits"}}]
[null,"TOTAL €",{"$nulls":3},{"$f":"SUM(G60:G91)","v":0}]
[]
[null,"Kalliston Olive Passion : PRODUITS A L'HUILE D'OLIVE ET AU LAIT D’ÂNESSE"]
[null,null,"PRODUITS ","CONTENANCE"," PRIX UNITE ","QUANTITE","TOTAL"]
[null,null,"Crème visage, corps et mains\nHuile olive bio, huile d’argan, beurre karité, avocat","100 ml",{"v":12.8,"d":"12.80 €"},null,{"$f":"F98*E98","v":0}]
[null,null,"Body Butter au lait d’ânesse\nHuile olive bio, avocat, cire d’abeille","75 ml",{"v":6.1,"d":"6.10 €"},null,{"$f":"F99*E99","v":0}]
[null,null,"Lait pour le corps au lait d’ânesse\nHuile olive bio, avocat, beurre karité, amande","200 ml",{"v":11.8,"d":"11.80 €"},null,{"$f":"F100*E100","v":0}]
[null,null,"Crème contour des yeux au lait d’ânesse\nHuile olive bio, argan, avocat, beurre karité et extrait de lupin","30 ml",{"v":20.5,"d":"20.50 €"},null,{"$f":"F101*E101","v":0}]
[null,null,"Crème visage au lait d’ânesse\nHuile olive bio, beurre karité\nPour une sensation de fermeté et hydratation","50 ml",{"v":24.6,"d":"24.60 €"},null,0]
[null,null,"Mousse nettoyante visage au lait d’ânesse\nHuile olive bio, aloé vera","150 ml",{"v":11.3,"d":"11.30 €"},null,0]
[null,null,"Masque visage au lait d’ânesse\nHuile olive bio, mangue, avocat, argan","50 ml",{"v":11.8,"d":"11.80 €"},null,0]
[null,null,"Crème pieds au lait d’ânesse\nHuile olive bio, amande, avocat, beurre karité","50 ml",{"v":4.1,"d":"4.10 €"},null,0]
[null,null,"Crème mains et corps au lait d’ânesse\nHuile olive bio, beurre de karité, cire abeille, avocat","50 ml",{"v":4.1,"d":"4.10 €"},null,{"$f":"F106*E106","v":0}]
[null,null,"Masque cheveux sans rinçage au lait d’ânesse\nHuile olive bio","200 ml",{"v":10.2,"d":"10.20 €"},null,0]
[null,null,"Baume lèvres au lait d’ânesse\nHuile olive bio, beurre de karité, raisin","10 ml",{"v":6.1,"d":"6.10 €"},null,0]
[null,null,"Huile sèche pour cheveux et corps\nHuile olive, huile avocat et huile amande","100 ml",{"v":15.4,"d":"15.40 €"},null,0]
[null,null,"Shampoing au lait d’ânesse\nHuile olive bio, aloé véra","250 ml",{"v":9.2,"d":"9.20 €"},null,0]
[null,null,"Gel douche au lait d’ânesse\nEt huile olive bio","250 ml",{"v":8.8,"d":"8.80 €"},null,0]
[null,null,"Savon au lait d’ânesse\nEt huile olive bio ","100 gr",{"v":1.6,"d":"1.60 €"},null,0]
[null,null,"Déodorant roll-on au lait d'ânesse\nEt Huile olive bio","50 ml",{"v":7.1,"d":"7.10 €"},null,0]
[]
[null,"TOTAL PRODUITS",{"$nulls":3},{"$f":"SUM(F98:F105)+SUM(F106:F113)","v":{"v":0,"d":"0.00"}}]
[null,"TOTAL €",{"$nulls":3},{"$f":"SUM(G98:G105)+SUM(G106:G113)","v":0}]